bitfinex-derivatives/quotes_ETHF0:USTF0_20260125
["timestamp","ask_amount","ask_price","bid_price","bid_amount"]
[1769306068036,3.96522243,2956.1,2955.2,0.00244436]
[1769306068232,0.77864057,2956.4,2955.2,0.00244436]
[1769306068537,3.96672203,2956.3,2955.2,0.00244436]
[1769306068837,3.96672203,2956.2,2955.2,0.00244436]
[1769306069138,3.96672203,2956.1,2955.2,0.00244436]
[1769306069436,0.3701402,2956.5,2955.3,0.77864057]
[1769306069636,3.96675247,2956.4,2955.3,0.77864057]
[1769306069833,3.96675247,2956.3,2955.3,0.77864057]
[1769306070040,3.96675247,2956.2,2955.3,1.13918885]
[1769306070238,3.96675247,2956.1,2955.3,1.13918885]
[1769306070433,1.987,2956.6,2955.3,1.13918885]
[1769306070632,3.96677133,2956.5,2955.3,1.13918885]
[1769306070832,3.96677133,2956.4,2955.5,0.77864057]
[1769306071034,3.96677133,2956.3,2955.5,0.77864057]
[1769306071238,3.96677133,2956.2,2955.5,0.77864057]
[1769306071439,1.987,2956.6,2955.5,0.77864057]
[1769306071738,3.96672372,2956.5,2955.5,0.77864057]
[1769306071939,3.96672372,2956.4,2955.5,0.77864057]
[1769306072139,3.96672372,2956.3,2955.5,0.77864057]
[1769306072439,3.96672372,2956.2,2955.5,0.77864057]
[1769306072739,1.987,2956.6,2955.5,0.77864057]
[1769306072938,3.96341305,2956.5,2955.5,0.77864057]
[1769306073139,3.96341305,2956.4,2955.5,0.77864057]
[1769306073440,3.96341305,2956.3,2955.5,0.77864057]
[1769306073641,3.96341305,2956.2,2955.5,0.77864057]
[1769306073834,1.987,2956.6,2955.5,0.77864057]
[1769306074034,3.96338991,2956.5,2955.5,0.77864057]
[1769306074234,3.96338991,2956.4,2955.5,0.77864057]
[1769306074436,3.96338991,2956.3,2955.5,0.77864057]
[1769306074634,3.96338991,2956.2,2955.5,0.77864057]
[1769306074944,3.96336714,2956.1,2955.5,0.77864057]
[1769306075244,1.987,2956.6,2955.5,0.77864057]
[1769306075430,3.96334665,2956.5,2955.5,0.77864057]
[1769306075635,3.96334665,2956.4,2955.5,0.77864057]
[1769306075837,3.96334665,2956.3,2955.5,0.77864057]
[1769306076032,3.96334665,2956.2,2955.5,0.77864057]
[1769306076331,3.96334665,2956.1,2955.5,0.77864057]
[1769306076534,1.987,2956.6,2955.5,0.77864057]
[1769306076834,3.96332833,2956.5,2955.5,0.77864057]
[1769306077035,3.96332833,2956.4,2955.5,0.77864057]
[1769306077235,3.96332833,2956.3,2955.5,0.77864057]
[1769306077534,3.96332833,2956.2,2955.5,0.77864057]
[1769306077734,3.96332833,2956.1,2955.5,0.77864057]
[1769306077930,1.987,2956.6,2955.5,0.77864057]
[1769306078145,3.96331079,2956.5,2955.5,0.77864057]
[1769306078343,3.96331079,2956.4,2955.5,0.77864057]
[1769306078545,3.96331079,2956.3,2955.5,0.77864057]
[1769306078748,3.96331079,2956.2,2955.5,0.77864057]
[1769306078948,3.96331079,2956.1,2955.5,0.77864057]
[1769306079146,1.987,2956.6,2955.5,0.77864057]
[1769306079445,3.96329707,2956.5,2955.5,0.77864057]
[1769306079644,3.96329707,2956.4,2955.5,0.77864057]
[1769306079944,3.96329707,2956.3,2955.5,0.77864057]
[1769306080250,3.96329707,2956.2,2955.5,0.77864057]
[1769306080448,3.96329707,2956.1,2955.5,0.77864057]
[1769306080640,1.987,2956.6,2955.5,0.77864057]
[1769306080841,3.96322893,2956.5,2955.5,0.77864057]
[1769306081133,3.96322893,2956.4,2955.5,0.77864057]
[1769306081333,3.96322893,2956.3,2955.5,0.77864057]
[1769306081538,3.96322893,2956.2,2955.5,0.77864057]
[1769306081746,3.96322893,2956.1,2955.5,0.77864057]
[1769306082044,1.987,2956.6,2955.5,0.77864057]
[1769306082247,3.96320409,2956.5,2955.5,0.77864057]
[1769306082439,3.96320409,2956.4,2955.5,0.77864057]
[1769306082641,3.96320409,2956.3,2955.5,0.77864057]
[1769306082844,3.96320409,2956.2,2955.5,0.77864057]
[1769306083039,3.96320409,2956.1,2955.5,0.77864057]
[1769306083235,1.987,2956.6,2955.5,0.77864057]
[1769306083540,3.96316686,2956.5,2955.5,0.77864057]
[1769306083739,3.96316686,2956.4,2955.5,0.77864057]
[1769306083941,3.96316686,2956.3,2955.5,0.77864057]
[1769306084142,3.96316686,2956.2,2955.5,0.77864057]
[1769306084337,3.96316686,2956.1,2955.5,0.77864057]
[1769306084537,1.987,2956.6,2955.5,0.77864057]
[1769306084738,3.96307975,2956.5,2955.5,0.77864057]
[1769306084939,3.96307975,2956.4,2955.5,0.77864057]
[1769306085247,3.96307975,2956.3,2955.5,0.77864057]
[1769306085447,3.96307975,2956.2,2955.5,0.77864057]
[1769306085647,1.987,2956.6,2955.5,0.77864057]
[1769306085847,3.96301019,2956.5,2955.5,0.77864057]
[1769306086048,3.96301019,2956.4,2955.5,0.77864057]
[1769306086249,3.96301019,2956.3,2955.5,0.77864057]
[1769306086451,3.96301019,2956.2,2955.5,0.77864057]
[1769306086648,1.987,2956.6,2955.5,0.77864057]
[1769306086842,3.96298668,2956.5,2955.5,0.77864057]
[1769306087053,3.96298668,2956.4,2955.5,0.77864057]
[1769306087253,3.96298668,2956.3,2955.5,0.77864057]
[1769306087445,3.96298668,2956.2,2955.5,0.77864057]
[1769306087646,1.987,2956.6,2955.5,0.77864057]
[1769306087846,3.96301659,2956.5,2955.5,0.77864057]
[1769306088055,3.96301659,2956.4,2955.5,0.77864057]
[1769306088252,3.96301659,2956.3,2955.5,0.77864057]
[1769306088450,3.96301659,2956.2,2955.5,0.77864057]
[1769306088754,1.987,2956.6,2955.5,0.77864057]
[1769306088954,3.96303831,2956.5,2955.5,0.77864057]
[1769306089156,3.96303831,2956.4,2955.5,0.77864057]
[1769306089355,1.987,2956.6,2955.5,0.77864057]
[1769306089555,3.96306293,2956.5,2955.5,0.77864057]
[1769306089755,3.96306293,2956.4,2955.5,0.77864057]
[1769306090059,3.96306293,2956.3,2955.5,0.77864057]
[1769306090259,3.96306293,2956.2,2955.5,0.77864057]
[1769306090465,3.96306293,2956.1,2955.5,0.77864057]
[1769306090666,1.987,2956.6,2955.5,0.77864057]
[1769306090965,3.96309423,2956.5,2955.5,0.77864057]
[1769306091167,3.96309423,2956.4,2955.5,0.77864057]
[1769306091360,3.96309423,2956.3,2955.5,0.77864057]
[1769306091556,3.96309423,2956.2,2955.5,0.77864057]
[1769306091861,3.96309423,2956.1,2955.5,0.77864057]
[1769306092058,1.987,2956.6,2955.5,0.77864057]
[1769306092258,3.96312466,2956.5,2955.3,1.13918885]
[1769306092458,3.96312466,2956.4,2955.3,1.13918885]
[1769306092659,3.96312466,2956.3,2955.3,1.13918885]
[1769306092866,3.96312466,2956.2,2955.3,1.13918885]
[1769306093064,3.96312466,2956.1,2955.3,1.13918885]
[1769306093266,2.76564057,2956.6,2955.3,1.13918885]
[1769306093468,3.96319822,2956.5,2955.3,1.13918885]
[1769306093765,2.76564057,2956.6,2955.3,1.13918885]
[1769306093766,3.96319822,2956.4,2955.3,1.13918885]
[1769306093967,3.96319822,2956.3,2955.3,1.13918885]
[1769306094167,3.96319822,2956.2,2955.3,1.13918885]
[1769306094373,3.96319822,2956.1,2955.3,1.13918885]
[1769306094570,2.76564057,2956.6,2955.3,1.13918885]
[1769306094770,3.96323862,2956.5,2955.3,1.13918885]
[1769306094972,3.96323862,2956.4,2955.3,1.13918885]
[1769306095270,3.96323862,2956.3,2955.3,1.13918885]
[1769306095472,3.96323862,2956.2,2955.3,1.13918885]
[1769306095670,3.96323862,2956.1,2955.3,1.13918885]
[1769306095864,2.76564057,2956.6,2955.3,1.13918885]
[1769306096065,3.96328715,2956.5,2955.3,1.13918885]
[1769306096362,3.96328715,2956.4,2955.3,1.13918885]
[1769306096562,3.96328715,2956.3,2955.3,1.13918885]
[1769306096765,3.96328715,2956.2,2955.3,1.13918885]
[1769306096966,3.96328715,2956.1,2955.3,1.13918885]
[1769306097167,2.76564057,2956.6,2955.3,1.13918885]
[1769306097366,3.9633423,2956.5,2955.3,1.13918885]
[1769306097665,3.9633423,2956.4,2955.3,1.13918885]
[1769306097866,3.9633423,2956.3,2955.3,1.13918885]
[1769306098061,3.9633423,2956.2,2955.3,1.13918885]
[1769306098267,3.9633423,2956.1,2955.3,1.13918885]
[1769306098571,2.76564057,2956.6,2955.3,1.13918885]
[1769306098572,1.987,2956.6,2955.3,1.13918885]
[1769306098771,3.96348625,2956.5,2955.3,1.13918885]
[1769306098972,3.96348625,2956.4,2955.3,0.36054828]
[1769306099173,3.96348625,2956.3,2955.3,0.36054828]
[1769306099368,3.96348625,2956.2,2955.3,0.36054828]
[1769306099669,3.96348625,2956.1,2955.3,0.36054828]
[1769306099969,1.987,2956.6,2955.3,0.36054828]
[1769306100170,3.96337467,2956.5,2955.3,0.36054828]
[1769306100468,3.96337467,2956.4,2955.3,0.36054828]
[1769306100667,3.96337467,2956.3,2955.3,0.36054828]
[1769306100867,3.96337467,2956.2,2955.3,0.36054828]
[1769306101070,3.96337467,2956.1,2955.3,0.36054828]
[1769306101268,1.987,2956.6,2955.3,0.36054828]
[1769306101472,3.96327249,2956.5,2955.3,0.36054828]
[1769306101670,3.96327249,2956.4,2955.3,0.36054828]
[1769306101869,3.96327249,2956.3,2955.3,0.36054828]
[1769306102070,3.96327249,2956.2,2955.3,0.36054828]
[1769306102270,3.96327249,2956.1,2955.3,0.36054828]
[1769306102471,1.987,2956.6,2955.3,0.36054828]
[1769306102670,3.96347315,2956.5,2955.3,0.36054828]
[1769306102872,3.96347315,2956.4,2955.3,0.36054828]
[1769306103071,3.96347315,2956.3,2955.3,0.36054828]
[1769306103272,3.96347315,2956.2,2955.3,0.36054828]
[1769306103472,3.96347315,2956.1,2955.3,0.36054828]
[1769306103668,1.987,2956.6,2955.3,0.36054828]
[1769306103868,3.963511,2956.5,2955.3,0.36054828]
[1769306104070,3.963511,2956.4,2955.3,0.36054828]
[1769306104270,3.963511,2956.3,2955.3,0.36054828]
[1769306104472,3.963511,2956.2,2955.3,0.36054828]
[1769306104671,3.963511,2956.1,2955.3,0.36054828]
[1769306104872,1.987,2956.6,2955.3,0.36054828]
[1769306105073,3.96349468,2956.5,2955.3,0.36054828]
[1769306105369,3.96349468,2956.4,2955.3,0.36054828]
[1769306105577,3.96349468,2956.3,2955.3,0.36054828]
[1769306105777,3.96349468,2956.2,2955.3,0.36054828]
[1769306106076,3.96349468,2956.1,2955.3,0.36054828]
[1769306106278,1.987,2956.6,2955.3,0.36054828]
[1769306106479,3.96366011,2956.5,2955.3,0.36054828]
[1769306106680,3.96366011,2956.4,2955.3,0.36054828]
[1769306106879,3.96366011,2956.3,2955.3,0.36054828]
[1769306107080,3.96366011,2956.2,2955.3,0.36054828]
[1769306107281,3.96366011,2956.1,2955.3,0.36054828]
[1769306107581,1.987,2956.6,2955.3,0.36054828]
[1769306107780,3.96365953,2956.5,2955.3,0.36054828]
[1769306107981,3.96365953,2956.4,2955.3,0.36054828]
[1769306108181,3.96365953,2956.3,2955.3,0.36054828]
[1769306108381,3.96365953,2956.2,2955.3,0.36054828]
[1769306108583,3.96365953,2956.1,2955.3,0.36054828]
[1769306108783,1.987,2956.5,2955.3,0.36054828]
[1769306108974,3.96366342,2956.4,2955.3,0.36054828]
[1769306109174,3.96366342,2956.3,2955.3,0.36054828]
[1769306109379,3.96366342,2956.2,2955.3,0.36054828]
[1769306109584,3.96366342,2956.1,2955.3,0.36054828]
[1769306109775,1.987,2956.5,2955.3,0.36054828]
[1769306109978,3.96367312,2956.4,2955.3,0.36054828]
[1769306110181,3.96367312,2956.3,2955.3,0.36054828]
[1769306110380,3.96367312,2956.2,2955.3,0.36054828]
[1769306110675,3.96367312,2956.1,2955.3,0.36054828]
[1769306110880,1.987,2956.5,2955.3,0.36054828]
[1769306111186,3.96368516,2956.4,2955.3,0.36054828]
[1769306111486,3.96368516,2956.3,2955.3,0.36054828]
[1769306111785,3.96368516,2956.2,2955.3,0.36054828]
[1769306111985,3.96368516,2956.1,2955.3,0.36054828]
[1769306112186,1.987,2956.5,2955.3,0.36054828]
[1769306112487,3.96360835,2956.4,2955.3,0.36054828]
[1769306112787,3.96360835,2956.3,2955.3,0.36054828]
[1769306112986,3.96360835,2956.2,2955.3,0.36054828]
[1769306113188,3.96360835,2956.1,2955.3,0.36054828]
[1769306113390,1.987,2956.5,2955.3,0.36054828]
[1769306113589,3.96319101,2956.4,2955.3,0.36054828]
[1769306113789,3.96319101,2956.3,2955.3,0.36054828]
[1769306113989,3.96319101,2956.2,2955.3,0.36054828]
[1769306114288,3.96319101,2956.1,2955.3,0.36054828]
[1769306114587,1.987,2956.5,2955.3,0.36054828]
[1769306114782,3.96297622,2956.4,2955.3,0.36054828]
[1769306114983,3.96297622,2956.3,2955.3,0.36054828]
[1769306115180,3.96297622,2956.2,2955.3,0.36054828]
[1769306115387,3.96297622,2956.1,2955.3,0.36054828]
[1769306115585,1.987,2956.5,2955.3,0.36054828]
[1769306115885,3.96282246,2956.4,2955.3,0.36054828]
[1769306116084,3.96282246,2956.3,2955.3,0.36054828]
[1769306116285,3.96282246,2956.2,2955.3,0.36054828]
[1769306116588,3.96282246,2956.1,2955.3,0.36054828]
[1769306116798,1.987,2956.5,2955.3,0.36054828]
[1769306117092,3.96270592,2956.4,2955.3,0.36054828]
[1769306117291,3.96270592,2956.3,2955.3,0.36054828]
[1769306117486,3.96270592,2956.2,2955.3,0.36054828]
[1769306117689,3.96270592,2956.1,2955.3,0.36054828]
[1769306117989,1.987,2956.5,2955.3,0.36054828]
[1769306118189,3.96259677,2956.4,2955.3,0.36054828]
[1769306118489,3.96259677,2956.3,2955.3,0.36054828]
[1769306118689,3.96259677,2956.2,2955.3,0.36054828]
[1769306118988,3.96259677,2956.1,2955.3,0.36054828]
[1769306119190,1.987,2956.5,2955.3,0.36054828]
[1769306119389,3.96244669,2956.4,2955.3,0.36054828]
[1769306119588,3.96244669,2956.3,2955.3,0.36054828]
[1769306119791,3.96244669,2956.2,2955.3,0.36054828]
[1769306119989,3.96244669,2956.1,2955.3,0.36054828]
[1769306120189,1.987,2956.5,2955.3,0.36054828]
[1769306120397,3.962366,2956.4,2955.3,0.36054828]
[1769306120597,3.962366,2956.3,2955.3,0.36054828]
[1769306120796,3.962366,2956.2,2955.3,0.36054828]
[1769306120996,3.962366,2956.1,2955.3,0.36054828]
[1769306121293,1.987,2956.5,2955.3,0.36054828]
[1769306121487,3.96230863,2956.4,2955.3,0.36054828]
[1769306121689,3.96230863,2956.3,2955.3,0.36054828]
[1769306121894,3.96230863,2956.2,2955.3,0.36054828]
[1769306122094,3.96230863,2956.1,2955.3,0.36054828]
[1769306122397,1.987,2956.5,2955.3,0.36054828]
[1769306122596,3.96226422,2956.4,2955.3,0.36054828]
[1769306122795,3.96226422,2956.3,2955.3,0.36054828]
[1769306122994,3.96226422,2956.2,2955.3,0.36054828]
[1769306123198,3.96226422,2956.1,2955.3,0.36054828]
[1769306123392,1.987,2956.5,2955.3,0.36054828]
[1769306123591,3.96222907,2956.4,2955.3,0.36054828]
[1769306123794,3.96222907,2956.3,2955.3,0.36054828]
[1769306124091,3.96222907,2956.2,2955.3,0.36054828]
[1769306124292,3.96222907,2956.1,2955.3,0.36054828]
[1769306124591,1.987,2956.5,2955.3,0.36054828]
[1769306124792,3.96220268,2956.4,2955.3,0.36054828]
[1769306124991,3.96220268,2956.3,2955.3,0.36054828]
[1769306125192,3.96220268,2956.2,2955.3,0.36054828]
[1769306125492,3.96220268,2956.1,2955.3,0.36054828]
[1769306125794,1.987,2956.5,2955.3,0.36054828]
[1769306125992,3.96217494,2956.4,2955.3,0.36054828]
[1769306126191,3.96217494,2956.3,2955.3,0.36054828]
[1769306126491,3.96217494,2956.2,2955.3,0.36054828]
[1769306126692,3.96217494,2956.1,2955.3,0.36054828]
[1769306126992,1.987,2956.5,2955.3,0.36054828]
[1769306127188,3.96214027,2956.4,2955.3,0.36054828]
[1769306127388,3.96214027,2956.3,2955.3,0.36054828]
[1769306127587,1.987,2956.5,2955.3,0.36054828]
[1769306127588,3.96214027,2956.2,2955.3,0.36054828]
[1769306127891,3.96214027,2956.1,2955.3,0.36054828]
[1769306128090,1.987,2956.5,2955.3,0.36054828]
[1769306128294,3.96212498,2956.4,2955.3,0.36054828]
[1769306128489,3.96212498,2956.3,2955.3,0.36054828]
[1769306128689,3.96212498,2956.2,2955.3,0.36054828]
[1769306128890,3.96212498,2956.1,2955.3,0.36054828]
[1769306129103,1.987,2956.6,2955.4,0.24914148]
[1769306129402,3.96251573,2956.5,2955.4,0.24914148]
[1769306129607,3.96251573,2956.4,2955.4,0.24914148]
[1769306129901,3.96251573,2956.3,2955.4,0.24914148]
[1769306130101,1.987,2956.6,2955.4,0.24914148]
[1769306130404,3.96223731,2956.5,2955.4,0.24914148]
[1769306130604,3.96223731,2956.4,2955.4,0.24914148]
[1769306130804,3.96223731,2956.3,2955.4,0.24914148]
[1769306131005,1.987,2956.6,2955.4,0.24914148]
[1769306131205,3.96182954,2956.5,2955.4,0.24914148]
[1769306131503,3.96182954,2956.4,2955.4,0.24914148]
[1769306131697,0.16938,2956.7,2955.4,0.24914148]
[1769306131698,3.96182954,2956.3,2955.4,0.24914148]
[1769306131897,2.15638,2956.7,2955.4,0.24914148]
[1769306132096,3.96148785,2956.6,2955.4,0.24914148]
[1769306132307,3.96148785,2956.5,2955.4,0.24914148]
[1769306132508,3.96148785,2956.4,2955.4,0.24914148]
[1769306132701,3.96148785,2956.3,2955.4,0.24914148]
[1769306133005,2.15638,2956.7,2955.4,0.24914148]
[1769306133206,3.96052605,2956.6,2955.4,0.24914148]
[1769306133409,3.96052605,2956.5,2955.4,0.24914148]
[1769306133608,3.96052605,2956.4,2955.4,0.24914148]
[1769306133811,3.96052605,2956.3,2955.4,0.24914148]
[1769306134011,2.15638,2956.7,2955.4,0.24914148]
[1769306134310,3.96027475,2956.6,2955.4,0.24914148]
[1769306134508,3.96027475,2956.5,2955.4,0.24914148]
[1769306134707,3.96027475,2956.4,2955.4,0.24914148]
[1769306134908,3.96027475,2956.3,2955.4,0.24914148]
[1769306135207,2.15638,2956.7,2955.4,0.24914148]
[1769306135408,3.95985353,2956.6,2955.4,0.24914148]
[1769306135599,3.95985353,2956.5,2955.4,0.24914148]
[1769306135804,3.95985353,2956.4,2955.4,0.24914148]
[1769306136006,2.15638,2956.7,2955.4,0.24914148]
[1769306136303,3.95985775,2956.6,2955.4,0.24914148]
[1769306136500,3.95985775,2956.5,2955.4,0.24914148]
[1769306136714,3.95985775,2956.4,2955.4,0.24914148]
[1769306136915,2.15638,2956.7,2955.4,0.24914148]
[1769306137213,3.9596776,2956.6,2955.4,0.24914148]
[1769306137412,3.9596776,2956.5,2955.4,0.24914148]
[1769306137612,3.9596776,2956.4,2955.4,0.24914148]
[1769306137811,2.15638,2956.7,2955.4,0.24914148]
[1769306138012,3.95951735,2956.6,2955.4,0.24914148]
[1769306138214,3.95951735,2956.5,2955.4,0.24914148]
[1769306138407,3.95951735,2956.4,2955.4,0.24914148]
[1769306138609,2.15638,2956.7,2955.4,0.24914148]
[1769306138815,3.95937092,2956.6,2955.4,0.24914148]
[1769306139011,3.95937092,2956.5,2955.4,0.24914148]
[1769306139224,3.95937092,2956.4,2955.4,0.24914148]
[1769306139420,2.15638,2956.7,2955.4,0.24914148]
[1769306139724,3.95923978,2956.6,2955.4,0.24914148]
[1769306140026,3.95923978,2956.5,2955.4,0.24914148]
[1769306140219,3.95923978,2956.4,2955.4,0.24914148]
[1769306140419,2.15638,2956.7,2955.4,0.24914148]
[1769306140615,3.95909971,2956.6,2955.4,0.24914148]
[1769306140819,3.95909971,2956.5,2955.4,0.24914148]
[1769306141022,3.95909971,2956.4,2955.4,0.24914148]
[1769306141323,2.15638,2956.7,2955.4,0.24914148]
[1769306141516,3.95898002,2956.6,2955.4,0.24914148]
[1769306141720,3.95898002,2956.5,2955.4,0.24914148]
[1769306142014,3.95898002,2956.4,2955.4,0.24914148]
[1769306142218,2.15638,2956.7,2955.4,0.24914148]
[1769306142419,3.95887958,2956.6,2955.4,0.24914148]
[1769306142615,3.95887958,2956.5,2955.4,0.24914148]
[1769306142819,3.95887958,2956.4,2955.4,0.24914148]
[1769306143023,2.15638,2956.7,2955.4,0.24914148]
[1769306143328,3.95888217,2956.6,2955.4,0.24914148]
[1769306143526,2.15638,2956.7,2955.4,0.24914148]
[1769306143527,3.95888217,2956.5,2955.4,0.24914148]
[1769306143728,3.95888217,2956.4,2955.4,0.24914148]
[1769306144030,2.15638,2956.7,2955.4,0.24914148]
[1769306144216,3.95885735,2956.6,2955.4,0.24914148]
[1769306144420,3.95885735,2956.5,2955.4,0.24914148]
[1769306144616,3.95885735,2956.4,2955.4,0.24914148]
[1769306144820,2.15638,2956.7,2955.4,0.24914148]
[1769306145016,3.95884806,2956.6,2955.4,0.24914148]
[1769306145226,3.95884806,2956.5,2955.4,0.24914148]
[1769306145432,3.95884806,2956.4,2955.4,0.24914148]
[1769306145631,2.15638,2956.7,2955.4,0.24914148]
[1769306145823,3.95901793,2956.6,2955.4,0.24914148]
[1769306146120,3.95901793,2956.5,2955.4,0.24914148]
[1769306146321,3.95901793,2956.4,2955.4,0.24914148]
[1769306146521,2.15638,2956.7,2955.4,0.24914148]
[1769306146715,3.95920254,2956.6,2955.4,0.24914148]
[1769306146918,3.95920254,2956.5,2955.4,0.24914148]
[1769306147231,2.15638,2956.7,2955.4,0.24914148]
[1769306147430,3.95916096,2956.6,2955.4,0.24914148]
[1769306147627,2.15638,2956.7,2955.4,0.24914148]
[1769306147628,3.95916096,2956.5,2955.4,0.24914148]
[1769306147931,2.15638,2956.7,2955.4,0.24914148]
[1769306148126,3.95916822,2956.6,2955.4,0.24914148]
[1769306148327,3.95916822,2956.5,2955.4,0.24914148]
[1769306148526,2.15638,2956.7,2955.4,0.24914148]
[1769306148825,3.95916144,2956.6,2955.4,0.24914148]
[1769306149025,3.95916144,2956.5,2955.4,0.24914148]
[1769306149224,0.16938,2956.7,2955.4,0.24914148]
[1769306149526,3.95919219,2956.6,2955.4,0.24914148]
[1769306149723,3.95919219,2956.5,2955.4,0.24914148]
[1769306149925,1.987,2956.8,2955.4,0.24914148]
[1769306150129,3.95915808,2956.7,2955.4,0.24914148]
[1769306150327,3.95915808,2956.6,2955.4,0.24914148]
[1769306150528,3.95915808,2956.5,2955.4,0.24914148]
[1769306150728,1.987,2956.8,2955.4,0.24914148]
[1769306150929,3.95909434,2956.7,2955.4,0.24914148]
[1769306151129,3.95909434,2956.6,2955.4,0.24914148]
[1769306151434,3.95909434,2956.5,2955.4,0.24914148]
[1769306151736,1.987,2956.8,2955.4,0.24914148]
[1769306151934,3.95909584,2956.7,2955.4,0.24914148]
[1769306152232,3.95909584,2956.6,2955.4,0.24914148]
[1769306152422,3.95909584,2956.5,2955.4,0.24914148]
[1769306152625,1.987,2956.8,2955.4,0.24914148]
[1769306152830,3.95914729,2956.7,2955.4,0.24914148]
[1769306153028,3.95914729,2956.6,2955.4,0.24914148]
[1769306153226,3.95914729,2956.5,2955.4,0.24914148]
[1769306153422,0.16935,2957.2,2955.4,0.24914148]
[1769306153736,1.987,2956.9,2955.4,0.24914148]
[1769306153924,3.95953052,2956.8,2955.4,0.24914148]
[1769306160836,3.95953052,2956.8,2955.5,0.77847566]
[1769306161138,3.95953052,2956.8,2955.5,1.01161578]
[1769306161341,3.95953052,2956.8,2955.6,0.23314012]
[1769306168543,3.95953052,2956.8,2955.7,0.77847566]
[1769306168745,3.95953052,2956.8,2955.7,1.01161101]
[1769306169350,3.95953052,2956.8,2955.8,0.23312576]
[1769306171046,3.95798151,2956.7,2955.8,0.23312576]
[1769306171246,1.987,2956.9,2955.8,0.23312576]
[1769306171447,3.95811091,2956.8,2955.8,0.23312576]
[1769306171646,3.95811091,2956.7,2955.8,0.23312576]
[1769306171947,1.987,2956.9,2955.8,0.23312576]
[1769306172147,3.95811074,2956.8,2955.8,0.23312576]
[1769306172340,3.95811074,2956.7,2955.8,0.23312576]
[1769306172537,1.987,2956.9,2955.8,0.23312576]
[1769306172744,3.95828204,2956.8,2955.8,0.23312576]
[1769306172949,3.95828204,2956.7,2955.8,0.23312576]
[1769306173140,1.987,2956.9,2955.8,0.23312576]
[1769306173344,3.95849728,2956.8,2955.8,0.23312576]
[1769306173640,3.95849728,2956.7,2955.8,0.23312576]
[1769306173840,1.987,2956.9,2955.8,0.23312576]
[1769306174040,3.95849648,2956.8,2955.8,0.23312576]
[1769306174241,3.95849648,2956.7,2955.8,0.23312576]
[1769306174447,1.987,2956.9,2955.8,0.23312576]
[1769306174647,3.95877097,2956.8,2955.8,0.23312576]
[1769306174843,3.95877097,2956.7,2955.8,0.23312576]
[1769306175043,1.987,2956.9,2955.8,0.23312576]
[1769306175250,3.9587933,2956.8,2955.8,0.23312576]
[1769306175451,3.9587933,2956.7,2955.8,0.23312576]
[1769306175749,3.9587933,2956.6,2955.8,0.23312576]
[1769306175950,1.987,2956.9,2955.8,0.23312576]
[1769306176151,3.95910223,2956.8,2955.8,0.23312576]
[1769306176351,3.95910223,2956.7,2955.8,0.23312576]
[1769306176544,3.95910223,2956.6,2955.8,0.23312576]
[1769306176745,1.987,2956.9,2955.8,0.23312576]
[1769306176949,3.95951979,2956.8,2955.8,0.23312576]
[1769306177246,3.95951979,2956.7,2955.8,0.23312576]
[1769306177546,3.95951979,2956.6,2955.8,0.23312576]
[1769306177846,1.987,2956.9,2955.8,0.23312576]
[1769306178047,3.9597621,2956.8,2955.8,0.23312576]
[1769306178249,3.9597621,2956.7,2955.8,0.23312576]
[1769306178450,3.9597621,2956.6,2955.8,0.23312576]
[1769306178655,1.987,2956.9,2955.8,0.23312576]
[1769306178854,3.96006756,2956.8,2955.8,0.23312576]
[1769306179055,3.96006756,2956.7,2955.8,0.23312576]
[1769306179257,3.96006756,2956.6,2955.8,0.23312576]
[1769306179458,1.987,2956.9,2955.8,0.23312576]
[1769306179760,3.96047101,2956.8,2955.8,0.23312576]
[1769306180057,3.96047101,2956.7,2955.8,0.23312576]
[1769306180259,1.987,2956.9,2955.8,0.23312576]
[1769306180461,3.960687,2956.8,2955.8,0.23312576]
[1769306180661,3.960687,2956.7,2955.8,0.23312576]
[1769306180961,2.009,2957.1,2956.2,0.23404353]
[1769306181161,3.96079954,2957.0,2956.2,0.23404353]
[1769306181360,3.96079954,2956.9,2956.2,0.23404353]
[1769306181557,3.96079954,2956.8,2956.2,0.23404353]
[1769306181753,2.009,2957.1,2956.2,0.23404353]
[1769306181958,3.96071804,2957.0,2956.2,0.23404353]
[1769306182158,2.009,2957.1,2956.2,0.23404353]
[1769306182159,3.96071804,2956.9,2956.2,0.23404353]
[1769306182360,3.96071804,2956.8,2956.2,0.23404353]
[1769306182660,2.009,2957.1,2956.2,0.23404353]
[1769306182861,3.96069046,2957.0,2956.2,0.23404353]
[1769306183065,3.96069046,2956.9,2956.2,0.23404353]
[1769306183262,3.96069046,2956.8,2956.2,0.23404353]
[1769306183457,2.009,2957.1,2956.2,0.23404353]
[1769306183657,3.96073991,2957.0,2956.2,0.23404353]
[1769306183953,3.96073991,2956.9,2956.2,0.23404353]
[1769306184157,3.96073991,2956.8,2956.2,0.23404353]
[1769306184359,2.009,2957.1,2956.2,0.23404353]
[1769306184565,3.9605248,2957.0,2956.2,0.23404353]
[1769306184767,3.9605248,2956.9,2956.2,0.23404353]
[1769306184967,3.9605248,2956.8,2956.2,0.23404353]
[1769306185170,2.009,2957.1,2956.2,0.23404353]
[1769306185465,3.96032612,2957.0,2956.2,0.23404353]
[1769306185657,3.96032612,2956.9,2956.2,0.23404353]
[1769306185852,3.96032612,2956.8,2956.2,0.23404353]
[1769306186060,2.009,2957.1,2956.2,0.23404353]
[1769306186260,3.96019803,2957.0,2956.2,0.23404353]
[1769306186566,3.96019803,2956.9,2956.2,0.23404353]
[1769306186764,3.96019803,2956.8,2956.2,0.23404353]
[1769306187066,2.009,2957.1,2956.2,0.23404353]
[1769306187261,3.96005666,2957.0,2956.2,0.23404353]
[1769306187461,3.96005666,2956.9,2956.2,0.23404353]
[1769306187662,3.96005666,2956.8,2956.2,0.23404353]
[1769306187963,2.009,2957.1,2956.2,0.23404353]
[1769306188159,3.96005179,2957.0,2956.2,0.23404353]
[1769306188359,3.96005179,2956.9,2956.2,0.23404353]
[1769306188554,2.009,2957.1,2956.2,0.23404353]
[1769306188555,3.96005179,2956.8,2956.2,0.23404353]
[1769306188759,2.009,2957.1,2956.2,0.23404353]
[1769306188965,3.95994067,2957.0,2956.2,0.23404353]
[1769306189264,3.95994067,2956.9,2956.2,0.23404353]
[1769306189458,3.95994067,2956.8,2956.2,0.23404353]
[1769306189661,2.009,2957.1,2956.2,0.23404353]
[1769306189858,3.95985429,2957.0,2956.2,0.23404353]
[1769306190158,3.95985429,2956.9,2956.2,0.23404353]
[1769306190358,3.95985429,2956.8,2956.2,0.23404353]
[1769306190556,2.009,2957.1,2956.2,0.23404353]
[1769306190762,3.9597853,2957.0,2956.2,0.23404353]
[1769306191062,3.9597853,2956.9,2956.2,0.23404353]
[1769306191359,3.9597853,2956.8,2956.2,0.23404353]
[1769306191555,2.009,2957.1,2956.2,0.23404353]
[1769306191760,3.95974298,2957.0,2956.2,0.23404353]
[1769306191960,3.95974298,2956.9,2956.2,0.23404353]
[1769306192167,2.009,2957.1,2956.2,0.23404353]